bitfinex-derivatives/quotes_ETHF0:USTF0_20250918
["timestamp","ask_amount","ask_price","bid_price","bid_amount"]
[1758155078509,0.6504,4598.5,4598.4,0.3532]
[1758155078710,0.8655,4598.5,4598.4,0.3532]
[1758155079119,0.4421,4598.5,4598.4,0.3532]
[1758155079319,0.6504,4598.5,4598.4,0.3532]
[1758155080018,0.8655,4598.5,4598.4,0.1766]
[1758155080417,0.8655,4598.5,4598.4,0.3532]
[1758155080618,0.8655,4598.5,4598.2,3.2078]
[1758155080814,0.3136,4598.4,4598.2,3.2078]
[1758155081013,0.737,4598.4,4598.3,0.3532]
[1758155081317,0.737,4598.4,4598.3,1.42057743]
[1758155081509,0.3136,4598.4,4598.3,1.53097743]
[1758155081715,0.223,4598.8,4598.3,1.53097743]
[1758155081916,0.7449,4598.8,4598.7,1.42057743]
[1758155082817,0.5219,4598.8,4598.7,1.42057743]
[1758155083407,0.5219,4598.8,4598.7,4.62837743]
[1758155083821,0.5219,4598.8,4598.7,3.561]
[1758155085121,3.5446,4599.5,4599.4,0.3532]
[1758155085419,4.31071738,4599.5,4599.4,0.3532]
[1758155085717,4.83941738,4599.5,4599.4,0.3532]
[1758155086019,4.2963,4599.5,4599.4,0.3532]
[1758155086211,0.3368,4599.0,4598.7,3.2078]
[1758155086413,0.737,4598.8,4598.7,3.561]
[1758155086811,0.5219,4598.8,4598.7,3.561]
[1758155087114,0.3136,4598.8,4598.7,3.561]
[1758155087319,0.1285,4599.0,4598.7,3.6714]
[1758155087514,0.4421,4599.0,4598.9,0.4636]
[1758155087714,0.6504,4599.0,4598.9,0.3532]
[1758155088120,0.8655,4599.0,4598.9,0.3532]
[1758155088619,0.8655,4599.0,4598.9,0.1766]
[1758155090616,0.8655,4599.0,4598.9,0.3532]
[1758155090922,0.6504,4599.0,4598.9,0.3532]
[1758155091523,0.8655,4599.0,4598.9,0.3532]
[1758155091723,0.8655,4599.0,4598.9,0.1766]
[1758155092424,0.8655,4599.0,4598.9,0.3532]
[1758155093724,0.8655,4599.0,4598.9,0.1766]
[1758155093920,0.3136,4598.9,4598.7,3.2078]
[1758155094120,0.3136,4598.9,4597.6,3.3182]
[1758155094121,0.1285,4598.5,4597.6,3.3182]
[1758155094320,0.8655,4598.0,4597.9,0.3532]
[1758155094625,0.8655,4598.0,4597.9,0.1766]
[1758155096532,0.8655,4598.0,4597.7,0.222]
[1758155096933,0.8655,4598.0,4597.9,0.1766]
[1758155097531,0.8655,4598.0,4597.9,0.3532]
[1758155097727,0.8655,4598.0,4597.9,1.5887865]
[1758155097929,0.4421,4598.0,4597.9,1.6909865]
[1758155099436,0.4421,4598.0,4597.9,1.5887865]
[1758155099632,0.4421,4598.0,4597.9,1.6909865]
[1758155100232,0.6446,4598.0,4597.9,1.5887865]
[1758155100835,0.4421,4598.0,4597.9,0.3532]
[1758155101040,0.4421,4598.0,4597.9,1.6909865]
[1758155101536,0.1285,4598.5,4597.9,1.6909865]
[1758155101744,0.8394,4598.5,4598.4,3.5348]
[1758155101937,0.8394,4598.5,4598.4,3.3713]
[1758155102246,0.3049,4598.9,4598.5,0.39125]
[1758155102547,0.5074,4598.9,4598.8,0.327]
[1758155103234,0.8408,4598.5,4598.4,3.2078]
[1758155106942,2.0763865,4598.5,4598.0,0.0217]
[1758155107241,1.9587865,4598.1,4598.0,0.0217]
[1758155108549,2.50340073,4598.1,4598.0,0.0217]
[1758155108840,1.26781423,4598.1,4598.0,0.0217]
[1758155109041,1.26781423,4598.1,4598.0,0.3393]
[1758155109042,0.3127,4598.1,4598.0,0.3393]
[1758155109241,0.6471,4598.5,4598.4,0.3176]
[1758155109443,0.4426,4598.5,4598.4,1.5531865]
[1758155109632,0.1285,4599.0,4598.4,1.5531865]
[1758155109633,0.222,4598.9,4598.5,0.0992]
[1758155109838,3.2078,4599.8,4598.8,4.8601865]
[1758155109839,0.3127,4599.4,4598.8,4.8601865]
[1758155110037,0.3127,4599.4,4598.8,4.23783]
[1758155110038,0.00326172,4598.9,4598.8,4.23783]
[1758155111043,0.00326172,4598.9,4598.8,5.4734165]
[1758155111749,0.00326172,4598.9,4598.8,3.8466]
[1758155111941,0.31596172,4598.9,4598.8,3.8466]
[1758155112349,0.00326172,4598.9,4598.8,3.8466]
[1758155116840,0.31596172,4598.9,4598.8,3.8466]
[1758155117144,0.31596172,4598.9,4598.8,3.7474]
[1758155117646,0.31596172,4598.9,4598.8,3.8466]
[1758155119848,0.31596172,4598.9,4598.8,3.7474]
[1758155120349,0.52046172,4598.9,4598.8,3.7474]
[1758155120951,0.31596172,4598.9,4598.8,3.8466]
[1758155122652,0.3127,4599.4,4598.9,0.0992]
[1758155122951,0.3127,4599.4,4599.3,3.5254]
[1758155123350,0.5172,4599.4,4599.3,3.5254]
[1758155125245,0.7232,4599.4,4599.3,3.5254]
[1758155125446,0.7232,4599.4,4599.3,3.2078]
[1758155126652,0.7232,4599.4,4599.3,3.3666]
[1758155127654,0.7232,4599.4,4599.3,3.2078]
[1758155127852,0.4105,4598.7,4598.6,3.43206172]
[1758155128052,0.7232,4598.7,4598.6,3.21106172]
[1758155128654,0.7232,4598.7,4598.6,3.36986172]
[1758155129247,0.7232,4598.7,4598.6,3.52866172]
[1758155130547,0.1318,4599.0,4598.6,3.62786172]
[1758155130753,0.3127,4599.2,4599.0,0.0992]
[1758155130952,0.3127,4599.2,4599.1,3.5254]
[1758155131154,0.3127,4599.2,4599.1,3.6246]
[1758155131551,0.3127,4599.2,4599.1,3.5254]
[1758155131751,0.3127,4599.2,4599.1,3.2078]
[1758155131752,0.7232,4599.2,4599.1,3.2078]
[1758155132153,0.7232,4598.9,4598.8,0.221]
[1758155133658,0.7232,4598.9,4598.7,0.1739]
[1758155135857,1.95891597,4598.9,4598.7,0.1739]
[1758155136066,0.9735483,4598.8,4598.7,0.1739]
[1758155136258,1.2804483,4598.8,4598.7,0.1739]
[1758155136955,5.2804483,4598.8,4598.7,0.1739]
[1758155137150,5.2804483,4598.8,4598.6,0.02496172]
[1758155137455,1.2804483,4598.7,4598.6,0.02496172]
[1758155138264,1.2804483,4598.7,4598.6,0.22856172]
[1758155138462,0.5472483,4598.7,4598.6,1.93417769]
[1758155138663,0.3069,4599.1,4599.0,0.4113]
[1758155138959,0.5139,4599.1,4599.0,0.6735]
[1758155139754,0.5139,4599.1,4599.0,0.4113]
[1758155141362,0.7332,4599.1,4599.0,0.4113]
[1758155141856,0.7332,4598.7,4598.6,4.44677769]
[1758155142062,0.7332,4598.7,4598.6,4.65037769]
[1758155142462,0.7332,4598.7,4598.6,4.85807769]
[1758155143064,0.7332,4598.7,4598.6,5.12027769]
[1758155143065,0.3069,4598.7,4598.6,5.12027769]
[1758155143562,0.1285,4599.5,4598.9,0.4113]
[1758155143753,1.28259169,4599.4,4599.3,0.4113]
[1758155143961,1.50189169,4599.4,4599.3,0.4113]
[1758155144767,1.50189169,4599.4,4599.3,0.2036]
[1758155144956,0.3069,4599.3,4599.1,3.2078]
[1758155145161,1.28090575,4599.2,4599.1,0.2036]
[1758155146567,0.97400575,4599.2,4598.9,1.23571597]
[1758155146765,0.8647,4599.0,4598.9,1.43931597]
[1758155147168,0.8647,4599.0,4598.9,1.64701597]
[1758155147874,0.8647,4599.0,4598.9,1.47914218]
[1758155148775,0.6454,4599.0,4598.9,1.74134218]
[1758155149063,0.3069,4599.0,4598.9,1.74134218]
[1758155150167,0.5139,4599.0,4598.9,1.74134218]
[1758155152072,0.8647,4599.0,4598.9,1.47914218]
[1758155152370,0.8647,4599.0,4598.9,1.74134218]
[1758155152570,0.3069,4599.0,4598.9,1.74134218]
[1758155154378,0.3069,4599.3,4598.9,1.47914218]
[1758155154567,0.85488122,4599.2,4599.1,0.6735]
[1758155154873,1.28118122,4599.2,4599.1,0.4113]
[1758155155373,1.28118122,4599.2,4599.1,3.6191]
[1758155155873,1.28118122,4599.2,4599.1,4.94914218]
[1758155156271,0.1285,4599.5,4599.1,4.94914218]
[1758155156464,0.3369,4600.0,4599.9,0.6735]
[1758155156665,1.10418249,4600.0,4599.9,0.4113]
[1758155156865,1.10418249,4600.0,4599.9,1.27144218]
[1758155157065,1.41108249,4600.0,4599.9,1.27144218]
[1758155157776,1.41108249,4600.0,4599.9,1.47914218]
[1758155157971,1.41108249,4600.0,4599.9,1.74134218]
[1758155158367,0.3069,4601.2,4600.7,0.4113]
[1758155158572,0.5139,4601.2,4601.1,1.74134218]
[1758155158873,1.06146279,4601.2,4601.1,1.47914218]
[1758155159074,1.25546279,4601.2,4601.1,1.47914218]
[1758155159378,0.7079,4601.2,4601.1,1.47914218]
[1758155160878,0.6983,4601.2,4601.1,0.2036]
[1758155161073,0.3914,4600.8,4600.7,3.2078]
[1758155161379,0.6841,4600.8,4600.7,3.41]
[1758155161979,0.6841,4600.8,4600.7,3.6151]
[1758155164978,0.2927,4600.8,4600.7,3.8705]
[1758155165586,0.4488,4601.0,4600.7,3.6151]
[1758155165779,0.4488,4601.0,4600.9,1.48174218]
[1758155166087,0.8485,4601.0,4600.9,0.4139]
[1758155166282,0.8485,4601.0,4600.9,1.48174218]
[1758155166588,0.5143,4601.4,4601.3,0.4139]
[1758155166779,0.5143,4601.4,4601.3,1.48174218]
[1758155167085,0.7204,4601.4,4601.3,1.48174218]
[1758155167384,0.5143,4601.4,4601.3,1.73464218]
[1758155167584,0.7204,4601.4,4601.3,1.48174218]
[1758155170389,0.3207,4601.3,4601.0,1.06784218]
[1758155170582,0.8389,4601.0,4600.9,0.00326172]
[1758155171787,0.8389,4601.0,4600.9,0.20996172]
[1758155173986,0.8389,4601.0,4600.9,0.00326172]
[1758155175089,1.90674218,4601.0,4600.9,0.00326172]
[1758155175390,1.90674218,4601.0,4600.2,0.6478]
[1758155175391,0.7204,4600.3,4600.2,0.1739]
[1758155175781,0.7204,4600.3,4600.0,3.2078]
[1758155175782,0.3207,4600.2,4600.0,3.2078]
[1758155175983,0.7204,4600.1,4600.0,3.2078]
[1758155176690,0.3997,4600.1,4599.7,1.08954218]
[1758155176893,0.7204,4599.8,4599.7,1.27454218]
[1758155180294,0.7204,4599.7,4599.5,3.2295]
[1758155180495,0.3207,4599.6,4599.5,4.50404218]
[1758155180792,0.7204,4599.6,4599.5,4.50404218]
[1758155180992,0.7204,4599.6,4599.5,4.71124218]
[1758155181589,0.7204,4599.6,4599.5,4.96734218]
[1758155182392,0.7204,4599.6,4599.5,3.8995]
[1758155182594,0.7204,4599.6,4599.5,4.71124218]
[1758155183585,0.7204,4599.6,4599.5,4.96734218]
[1758155184293,0.5143,4599.6,4599.5,4.96734218]
[1758155185296,0.3207,4599.6,4599.5,4.96734218]
[1758155186796,0.5143,4599.6,4599.5,4.96734218]
[1758155187696,0.53478436,4599.6,4599.5,4.96734218]
[1758155187892,0.74088436,4599.6,4599.5,0.2284]
[1758155188094,1.80872654,4599.6,4599.5,0.0217]
[1758155188392,0.74088436,4599.6,4599.5,0.0217]
[1758155189494,0.02048436,4599.6,4599.5,0.6917]
[1758155189701,0.02048436,4599.6,4599.5,3.8995]
[1758155190402,0.3207,4600.4,4600.3,0.4139]
[1758155190599,0.5143,4600.9,4600.8,0.4139]
[1758155190894,0.5143,4600.9,4600.8,0.6495]
[1758155191096,0.7204,4600.9,4600.8,1.48174218]
[1758155196500,0.3207,4600.9,4600.8,1.70694218]
[1758155196708,0.5302,4601.2,4601.1,0.6147]
[1758155196997,0.221,4601.4,4601.3,0.3895]
[1758155197202,0.4233,4601.4,4601.3,0.6147]
[1758155197604,0.7325,4601.4,4601.3,0.6147]
[1758155198103,0.7325,4601.4,4601.3,0.3895]
[1758155198406,0.5115,4601.4,4601.3,0.3895]
[1758155198604,0.7325,4601.4,4601.3,0.3895]
[1758155199207,0.9262,4601.4,4601.3,0.3895]
[1758155199591,0.9262,4601.4,4601.2,3.2078]
[1758155199798,0.9262,4601.4,4600.7,3.2078]
[1758155199799,0.7052,4600.8,4600.7,3.2078]
[1758155200306,0.221,4600.9,4600.3,1.06784218]
[1758155200307,0.8268,4600.5,4600.4,0.1951]
[1758155200797,0.8268,4600.5,4600.2,3.2078]
[1758155200798,0.7052,4600.3,4600.2,3.4029]
[1758155201398,0.7052,4600.3,4600.2,3.5973]
[1758155201903,0.7052,4600.3,4600.2,3.4029]
[1758155202107,0.7052,4600.3,4600.2,3.2078]
[1758155202404,0.7052,4600.3,4600.2,3.4029]
[1758155204208,0.7052,4600.3,4600.0,0.0217]
[1758155204595,1.46384218,4600.1,4600.0,0.0217]
[1758155204803,1.77304218,4600.1,4600.0,0.0217]
[1758155205806,0.7052,4600.1,4600.0,0.0217]
[1758155206098,0.7052,4600.1,4600.0,0.4112]
[1758155206305,0.7052,4600.1,4600.0,0.6364]
[1758155206598,0.9262,4600.1,4600.0,0.6364]
[1758155207107,0.9262,4600.1,4600.0,0.4112]
[1758155209006,0.7052,4600.1,4600.0,0.4112]
[1758155209601,0.9262,4600.1,4600.0,0.4112]
[1758155211804,0.9262,4600.1,4600.0,0.2168]
[1758155212111,0.9262,4600.1,4600.0,0.0217]
[1758155213008,0.9252,4600.1,4600.0,0.0217]
[1758155213904,0.1216,4600.0,4599.7,0.1739]
[1758155214208,0.7052,4599.8,4599.7,0.369]
[1758155214404,0.7052,4599.8,4599.7,2.02378039]
[1758155214405,0.5115,4599.8,4599.7,2.02378039]
[1758155215504,0.5115,4599.8,4599.7,1.79858039]
[1758155216009,0.5115,4599.8,4599.7,2.02378039]
[1758155216606,0.3092,4599.8,4599.7,2.02378039]
[1758155220706,0.3103,4600.3,4600.2,0.6377]
[1758155220908,0.5077,4600.9,4600.8,0.4124]
[1758155221109,1.27680194,4600.9,4600.8,0.4124]
[1758155221312,1.48210194,4600.9,4600.8,0.4124]
[1758155221510,0.1205,4600.5,4600.4,3.2078]
[1758155221713,0.8335,4600.5,4600.4,3.2078]
[1758155221913,0.8335,4600.5,4600.4,3.4141]
[1758155222309,0.8335,4600.5,4600.4,3.6202]
[1758155223015,0.8335,4600.5,4600.4,3.4141]
[1758155224712,0.8335,4600.5,4600.4,3.6202]
[1758155224912,0.8335,4600.5,4600.4,3.8455]
[1758155225109,0.8335,4600.5,4600.4,3.6202]
[1758155226706,0.3103,4600.5,4600.4,3.8456]
[1758155226911,0.4978,4601.4,4601.3,0.4088]
[1758155227113,1.04685196,4601.4,4601.3,0.6342]
[1758155227613,1.04685196,4601.4,4601.3,0.4088]
[1758155227813,1.24185196,4601.4,4601.3,0.4088]
[1758155228519,1.24185196,4601.4,4601.1,3.2078]
[1758155228520,0.6928,4601.2,4601.1,3.2078]
[1758155229120,0.1153,4601.0,4600.5,3.2078]
[1758155229415,0.6928,4600.6,4600.5,3.6166]
[1758155230617,0.6928,4600.6,4600.5,3.2078]
[1758155232615,0.1153,4600.5,4600.3,0.1739]
[1758155232814,0.6928,4600.4,4600.3,0.1739]
[1758155233315,0.6928,4600.4,4600.3,0.5827]
[1758155233511,0.6928,4600.4,4600.3,1.81788039]
[1758155233927,0.4978,4600.4,4600.3,1.81788039]
[1758155234117,0.2901,4600.9,4600.3,2.04328039]
[1758155234319,1.04695756,4600.8,4600.7,1.64398039]
[1758155235024,0.2901,4601.2,4601.1,0.4088]
[1758155235323,0.2901,4601.2,4601.1,1.86938039]
[1758155235713,0.2901,4601.4,4601.3,0.6342]
[1758155235919,0.5101,4601.9,4601.3,0.6342]
[1758155236118,1.04757152,4601.8,4601.7,0.4088]
[1758155236917,1.24257152,4601.8,4601.7,0.4088]
[1758155237127,0.6928,4601.3,4601.2,0.2006]
[1758155237633,0.6928,4601.3,4601.2,0.4088]
[1758155238018,0.2901,4601.3,4601.2,1.86938039]
[1758155238219,0.2901,4601.3,4601.2,1.64398039]
[1758155238220,0.6928,4601.3,4601.2,1.64398039]
[1758155239129,0.6928,4601.3,4601.2,0.4088]
[1758155239323,0.2901,4601.2,4601.0,3.2078]
[1758155239522,0.6928,4601.1,4601.0,3.6166]
[1758155239722,0.4978,4601.4,4601.3,0.4088]
[1758155239918,0.6928,4601.4,4601.3,0.4088]
[1758155240320,0.6928,4601.4,4601.1,0.1738]
[1758155240520,0.6928,4601.4,4601.1,0.1955]
[1758155241620,0.6928,4601.4,4601.3,0.4088]
[1758155242725,0.4978,4601.4,4601.3,0.4088]
[1758155242926,0.6928,4601.4,4601.3,0.4088]
[1758155246030,0.4027,4601.2,4601.1,0.3961]
[1758155246529,0.6928,4601.2,4601.1,0.3961]
[1758155248030,0.6928,4601.2,4601.1,0.6043]
[1758155248729,0.6928,4601.2,4601.1,2.06488039]
[1758155248730,0.4978,4601.2,4601.1,2.06488039]
[1758155249130,0.4978,4601.2,4601.1,1.83948039]
[1758155249926,0.6928,4601.2,4601.1,1.83948039]
[1758155250629,0.6928,4601.2,4601.1,0.1955]
[1758155251030,1.24295679,4601.2,4601.1,0.1955]
[1758155251329,1.24295679,4601.2,4601.1,0.3961]
[1758155251532,0.6928,4601.2,4601.1,1.83948039]
[1758155251732,0.6928,4601.2,4601.1,1.81778039]
[1758155252234,1.24297684,4601.2,4601.1,1.81778039]
[1758155252933,0.55017684,4601.2,4601.1,2.04318039]
[1758155253329,0.518,4601.5,4601.4,0.4088]
[1758155253535,1.35914367,4601.5,4601.4,0.4088]
[1758155253834,1.35914367,4601.5,4601.4,0.2006]
[1758155254032,1.35914367,4601.5,4601.4,0.4088]
[1758155254730,0.84114367,4601.5,4601.4,0.6342]
[1758155254933,0.55104367,4601.5,4601.4,0.6342]
[1758155255233,0.4978,4601.9,4601.8,0.4088]
[1758155255534,1.24382462,4601.9,4601.8,4.85178039]
[1758155256534,0.84112462,4601.9,4601.8,5.07728039]
[1758155256731,1.03592462,4601.9,4601.8,1.86948039]
[1758155256933,1.03592462,4601.9,4601.8,1.64398039]
[1758155257130,1.23852462,4601.9,4601.8,1.64398039]
[1758155257331,1.23852462,4601.9,4601.8,4.85178039]
[1758155257532,0.2901,4601.9,4601.8,5.07728039]
[1758155258030,0.6875,4601.9,4601.8,4.85178039]
[1758155259939,0.2901,4601.9,4601.8,5.07728039]
[1758155260342,0.4849,4601.9,4601.8,5.07728039]
[1758155262140,0.5061,4601.9,4601.8,4.85178039]
[1758155262344,0.7087,4601.9,4601.8,5.07728039]
[1758155262946,0.5061,4601.9,4601.8,5.07728039]
[1758155263842,0.7087,4601.9,4601.8,0.2006]
[1758155264043,1.25956664,4601.9,4601.8,0.2006]
[1758155264642,1.25956664,4601.9,4601.8,0.3976]
[1758155265044,1.25956664,4601.9,4601.8,0.2006]
[1758155266249,1.25956664,4601.9,4601.6,0.1738]
[1758155266550,0.7087,4601.9,4601.6,0.1738]
[1758155267346,0.55094662,4601.8,4601.6,0.1738]
[1758155267549,1.47964662,4601.7,4601.6,0.1738]
[1758155269849,2.54665038,4601.7,4601.6,0.1738]
[1758155270248,0.7087,4601.4,4601.3,3.2078]
[1758155270451,0.7087,4600.8,4600.7,3.2078]
[1758155270647,1.47964662,4600.8,4600.7,3.2078]
[1758155271548,1.48038766,4600.8,4600.7,3.2078]
[1758155272543,0.3974,4600.3,4600.2,1.06700376]
[1758155272744,0.3974,4600.3,4600.2,1.27620376]
[1758155272745,0.9287,4600.3,4600.2,1.27620376]
[1758155273346,0.3113,4602.1,4601.0,0.382]
[1758155273558,0.5313,4602.1,4601.8,1.47320376]
[1758155273752,0.55153476,4602.0,4601.9,0.7016]
[1758155274454,0.22,4602.0,4601.9,0.7016]
[1758155274655,0.4309,4602.5,4601.9,0.7016]
[1758155274854,1.27760458,4602.4,4602.3,1.76860376]
[1758155275956,1.48020458,4602.4,4602.3,1.47320376]
[1758155276157,1.48020458,4602.4,4602.3,1.76860376]
[1758155276353,1.48020458,4602.4,4602.3,0.7016]
[1758155278059,1.26020458,4602.4,4602.3,0.7016]
[1758155278361,1.48020458,4602.4,4602.3,0.7016]
[1758155279057,1.48020458,4602.4,4602.3,0.4062]
[1758155279658,1.26020458,4602.4,4602.3,0.4062]
[1758155279957,1.48020458,4602.4,4602.3,0.4062]
[1758155281967,0.6859,4601.8,4601.7,4.68210376]
[1758155282166,0.9059,4601.8,4601.7,3.4111]
[1758155282463,0.9059,4601.8,4601.7,3.2078]
[1758155283061,1.15546793,4601.8,4601.5,1.06700376]
[1758155283265,0.6859,4601.6,4601.2,4.27480376]
[1758155283458,0.384,4601.3,4601.2,3.6151]
[1758155283658,0.6859,4601.3,4601.2,3.9052]
[1758155284661,0.6859,4601.3,4601.2,4.97220376]
[1758155288968,0.6859,4601.3,4601.2,4.68210376]
[1758155290568,0.6859,4601.3,4601.2,4.97570376]
[1758155291473,0.4933,4601.3,4601.2,4.97570376]
[1758155295570,0.6919,4601.3,4601.2,4.68210376]
[1758155295769,0.6919,4601.3,4601.2,0.2033]
[1758155295970,1.24238247,4601.3,4601.2,0.2033]
[1758155296470,0.8137,4601.0,4600.9,0.0217]
[1758155296880,0.8137,4601.0,4600.5,0.3642]
[1758155296881,0.6988,4600.6,4600.5,0.3642]
[1758155297074,0.6988,4600.6,4600.5,0.1738]
[1758155297368,0.6988,4600.3,4600.2,3.3982]
[1758155297979,0.6988,4600.3,4600.2,3.2078]
[1758155298575,0.3952,4600.3,4599.7,3.5014]
[1758155298882,0.6988,4599.8,4599.7,3.8841]
[1758155299471,0.6988,4599.8,4599.7,3.5905]
[1758155299976,0.6988,4599.8,4599.7,3.8841]
[1758155300580,0.3036,4600.4,4599.7,3.5905]
[1758155300776,0.9188,4600.3,4600.2,1.44970376]
[1758155300982,0.9188,4600.3,4600.2,1.74330376]
[1758155302283,0.3036,4600.9,4600.2,1.44970376]
[1758155302484,0.6988,4600.7,4600.6,1.74330376]
[1758155302684,1.24852684,4600.7,4600.6,1.74330376]
[1758155302882,1.24852684,4600.7,4600.1,0.2936]
[1758155303076,0.6988,4600.2,4600.1,0.6763]
[1758155303277,0.6988,4600.2,4600.1,0.1904]
[1758155303278,1.98580376,4600.2,4600.1,0.1904]
[1758155303681,0.9188,4600.2,4600.1,0.1904]
[1758155304587,0.9188,4600.2,4600.1,0.3827]
[1758155305188,0.9188,4600.2,4600.1,0.6763]
[1758155306284,0.6988,4600.2,4600.1,0.6763]
[1758155306488,0.9188,4600.2,4600.1,0.6763]
[1758155306991,0.9188,4600.2,4600.1,0.3827]
[1758155307182,0.1149,4600.0,4599.9,1.25740376]
[1758155307378,0.8137,4600.0,4599.9,1.25740376]
[1758155307777,0.8137,4600.0,4599.9,1.44970376]
[1758155307980,0.8137,4600.0,4599.9,1.74330376]
[1758155308180,0.3036,4599.9,4599.7,3.2078]
[1758155308382,0.6988,4599.8,4599.7,3.3982]
[1758155308582,0.6988,4599.8,4599.7,3.5905]
[1758155309185,0.6988,4599.8,4599.7,3.8841]
[1758155309891,0.9188,4599.8,4599.7,3.8841]
[1758155310292,0.9188,4599.8,4599.7,3.5905]
[1758155310990,0.9188,4599.8,4599.7,3.8841]
[1758155311584,0.9188,4599.8,4599.7,0.6763]
[1758155312290,0.9188,4599.8,4599.7,0.3827]
[1758155312690,0.6988,4599.8,4599.7,0.6763]
[1758155313281,0.9188,4599.8,4599.7,0.6763]
[1758155313482,0.6988,4599.8,4599.7,0.6763]
[1758155313688,0.8137,4599.5,4599.4,0.1904]
[1758155314088,0.3952,4599.3,4599.1,0.1739]
[1758155314395,0.9188,4599.2,4599.1,0.1739]
[1758155314786,4.6152,4599.2,4598.2,0.2936]
[1758155314993,0.5002,4598.3,4598.2,0.6763]
[1758155315186,0.1149,4599.0,4598.2,0.6763]
[1758155315187,0.22,4598.6,4598.2,0.6763]
[1758155315384,0.5002,4598.4,4598.3,1.06700376]
[1758155315591,0.6988,4598.4,4598.3,0.3827]
[1758155315788,0.6988,4598.4,4597.0,0.0866]
[1758155315789,0.6934,4597.7,4597.6,3.6058]
[1758155316489,0.6934,4597.7,4597.6,3.9011]
[1758155319103,0.6934,4597.7,4597.6,3.2078]
[1758155319298,4.6934,4597.7,4597.1,0.0217]
[1758155319506,0.6934,4597.2,4597.1,0.0217]
[1758155319694,0.9134,4597.2,4597.1,0.0217]
[1758155319997,0.6934,4597.1,4597.0,3.406]
[1758155320500,1.76040376,4597.1,4597.0,3.2078]
[1758155321096,0.6934,4596.9,4596.4,3.5031]
[1758155321398,0.5227,4596.9,4596.8,0.8673]
[1758155321703,35.9214,4597.7,4597.6,0.6933]
[1758155321899,0.3027,4598.2,4597.6,1.46500376]
[1758155322202,3.9012,4597.8,4597.7,0.398]
[1758155322500,4.1212,4597.8,4597.7,0.398]
[1758155322896,4.1212,4597.8,4597.7,0.6933]
[1758155323091,0.9134,4597.8,4597.7,0.6933]
[1758155323493,0.7127,4597.8,4597.7,0.6933]
[1758155325698,0.22,4597.8,4597.7,0.6933]
[1758155325905,0.3027,4598.3,4597.8,0.2953]
[1758155326094,0.7127,4598.2,4598.1,0.6933]
[1758155326495,0.4927,4598.2,4598.1,0.6933]
[1758155326701,0.22,4598.2,4598.1,0.6933]
[1758155329210,35.23,4598.9,4598.1,0.398]
[1758155329400,0.3027,4598.7,4598.2,0.2953]
[1758155329707,0.9134,4598.8,4598.7,0.1982]
[1758155330005,1.71399264,4598.8,4598.7,0.1982]
[1758155330905,1.71399264,4598.8,4598.3,0.2953]
[1758155331099,0.6934,4598.4,4598.3,0.6933]
[1758155331807,0.9134,4598.4,4598.3,0.6933]
[1758155332903,0.6934,4598.4,4598.3,0.6933]
[1758155333103,0.9134,4598.4,4598.3,0.6933]
[1758155333306,0.9134,4598.4,4597.9,3.2078]
[1758155333307,0.9134,4598.4,4597.9,3.5031]
[1758155333498,0.8122,4598.0,4597.9,0.1982]
[1758155333698,1.0322,4598.0,4597.5,0.2953]
[1758155333993,0.6934,4597.9,4597.8,0.1982]
[1758155334197,0.6934,4597.9,4597.8,0.398]
[1758155334402,0.6934,4597.9,4597.8,0.6933]
[1758155340313,0.6934,4597.9,4597.8,0.398]
[1758155340808,1.24495983,4597.9,4597.8,0.398]
[1758155341106,1.49698224,4597.9,4597.8,0.398]
[1758155341308,1.29628224,4597.9,4597.8,0.7014]
[1758155341809,1.51628224,4597.9,4597.8,0.7014]
[1758155342204,1.71268224,4597.9,4597.8,0.7014]
[1758155342408,1.71268224,4597.9,4597.8,0.398]
[1758155342608,1.71268224,4597.9,4597.8,0.7014]
[1758155344305,0.6726,4597.4,4597.2,0.0217]
[1758155344510,2.93260949,4597.3,4597.2,0.0217]
[1758155345007,10.35792949,4597.3,4597.2,0.0217]
[1758155345805,10.14040949,4597.3,4597.2,0.0217]
[1758155347112,0.2104,4596.2,4596.1,3.6176]
[1758155347315,0.9204,4596.2,4596.1,3.9242]
[1758155347505,1.47195983,4596.2,4596.1,3.6176]
[1758155347708,1.72429852,4596.2,4596.1,0.2084]
[1758155347906,0.2884,4596.1,4595.6,3.2078]
[1758155348102,0.7004,4595.7,4595.6,3.2078]
[1758155348405,0.1232,4595.0,4594.6,0.4098]
[1758155348611,0.22,4594.9,4594.8,1.64622725]
[1758155348913,0.7004,4595.4,4595.3,0.4098]
[1758155349215,1.72600508,4595.4,4595.3,0.7164]
[1758155350111,1.47373675,4595.4,4595.3,0.7164]
[1758155350513,1.25273675,4595.4,4595.3,0.7164]
[1758155350710,3.2078,4595.7,4595.3,0.7164]
[1758155350711,3.4962,4596.3,4595.3,4.4098]
[1758155351011,3.4962,4596.3,4595.2,3.2078]
[1758155351012,1.2702927,4596.2,4596.1,0.7164]
[1758155351410,1.4718927,4596.2,4596.1,0.7164]
[1758155352418,0.9214,4596.2,4596.1,0.7164]
[1758155353115,0.7004,4596.2,4596.1,0.7164]
[1758155353316,0.7198,4596.2,4596.1,0.7164]
[1758155354014,3.2078,4596.3,4596.2,0.3066]
[1758155354217,3.4288,4596.3,4596.2,0.7164]
[1758155354510,3.7066,4596.3,4596.2,0.7164]
[1758155354719,3.4288,4596.3,4596.2,0.7164]
[1758155355018,4.1292,4596.3,4596.2,0.7164]
[1758155355414,4.1292,4596.3,4596.2,0.4098]
[1758155355913,4.1292,4596.3,4595.4,0.0187]
[1758155356106,0.54988426,4596.2,4595.4,0.0187]
[1758155356310,0.4988,4595.5,4595.4,0.4285]
[1758155356511,0.7198,4595.5,4595.4,0.7351]
[1758155356713,0.7198,4595.5,4595.4,0.7164]
[1758155357114,0.7198,4595.5,4594.7,3.2078]
[1758155357115,1.0446,4595.5,4594.9,0.3066]